fUST/lending_fUST_20240321
["ID","MTS","AMOUNT","RATE_DAILY","PERIOD"]
[319770556,1710963034211,-500.0,0.00024931,2]
[319770558,1710963034220,-500.0,0.00024931,2]
[319770560,1710963034229,-500.0,0.00024931,2]
[319770562,1710963034238,-500.0,0.00024931,2]
[319770564,1710963034247,-500.0,0.00024931,2]
[319770566,1710963034260,-2248.2,0.00024931,2]
[319770568,1710963034269,-500.0,0.00024931,2]
[319770570,1710963034278,-500.0,0.00024931,2]
[319770572,1710963034288,-1953.44,0.00024931,2]
[319770574,1710963034297,-500.0,0.00024931,2]
[319770576,1710963034306,-500.0,0.00024931,2]
[319770578,1710963034315,-500.0,0.00024931,2]
[319770580,1710963034325,-500.0,0.00024931,2]
[319770582,1710963034334,-500.0,0.00024931,2]
[319770584,1710963034343,-500.0,0.00024931,2]
[319770586,1710963034352,-500.0,0.00024931,2]
[319770588,1710963034361,-500.0,0.00024931,2]
[319770590,1710963034371,-500.0,0.00024931,2]
[319770592,1710963034380,-500.0,0.00024931,2]
[319770594,1710963034390,-500.0,0.00024931,2]
[319770596,1710963034398,-2352.01,0.00024931,2]
[319770598,1710963034408,-500.0,0.00024931,2]
[319770600,1710963034417,-500.0,0.00024931,2]
[319770602,1710963034427,-500.0,0.00024931,2]
[319770604,1710963034436,-1133.89,0.00024931,2]
[319770606,1710963034445,-500.0,0.00024931,2]
[319770608,1710963034454,-1717.55,0.00024931,2]
[319770609,1710963034463,-500.0,0.00024931,2]
[319770612,1710963034472,-624.12867581,0.00024953,2]
[319770614,1710963034481,-1016.28140026,0.0002497,7]
[319770616,1710963034491,-500.0,0.0002506,2]
[319770617,1710963034500,-500.0,0.0002506,2]
[319770620,1710963034509,-500.0,0.0002506,2]
[319770621,1710963034519,-367.6685871,0.0002506,2]
[319770623,1710963034528,-500.0,0.0002506,2]
[319770626,1710963034538,-500.0,0.0002506,2]
[319770627,1710963034547,-4656.72,0.0002506,2]
[319770629,1710963034556,-500.0,0.0002506,2]
[319770630,1710963034566,-500.0,0.0002506,2]
[319770631,1710963034575,-500.0,0.0002506,2]
[319770632,1710963034584,-500.0,0.0002506,2]
[319770633,1710963034594,-500.0,0.0002506,2]
[319770634,1710963034604,-158.75204051,0.0002506,2]
[319770635,1710963034613,-500.0,0.00025061,2]
[319770636,1710963034623,-500.0,0.00025061,2]
[319770637,1710963034632,-500.0,0.00025061,2]
[319770638,1710963034642,-500.0,0.00025061,2]
[319770639,1710963034651,-500.0,0.00025061,2]
[319770640,1710963034661,-500.0,0.00025061,2]
[319770641,1710963034670,-500.0,0.00025061,2]
[319770642,1710963034680,-768.0,0.00025178,2]
[319770643,1710963034689,-500.0,0.00025205,2]
[319770644,1710963034698,-500.0,0.00025205,2]
[319770645,1710963034708,-588.62091546,0.00025205,2]
[319770646,1710963034717,-500.0,0.00025205,2]
[319770647,1710963034726,-500.0,0.00025205,2]
[319770649,1710963034735,-500.0,0.00025205,2]
[319770650,1710963034744,-500.0,0.00025205,2]
[319770651,1710963034756,-500.0,0.00025205,2]
[319770652,1710963034765,-500.0,0.00025205,2]
[319770653,1710963034774,-500.0,0.00025205,2]
[319770654,1710963034783,-500.0,0.00025205,2]
[319770655,1710963034792,-500.0,0.00025205,2]
[319770656,1710963034812,-500.0,0.00025205,2]
[319770657,1710963034822,-500.0,0.00025205,2]
[319770658,1710963034831,-484.26802604,0.00025205,2]
[319770659,1710963034997,-2248.2,0.00025205,2]
[319770660,1710963035009,-500.0,0.00025205,2]
[319770661,1710963035018,-500.0,0.00025205,2]
[319770662,1710963035028,-1953.44,0.00025205,2]
[319770663,1710963035037,-500.0,0.00025205,2]
[319770664,1710963035047,-500.0,0.00025205,2]
[319770665,1710963035056,-500.0,0.00025205,2]
[319770666,1710963035065,-500.0,0.00025205,2]
[319770668,1710963035075,-500.0,0.00025205,2]
[319770670,1710963035084,-500.0,0.00025205,2]
[319770671,1710963035094,-581.49431815,0.00025205,2]
[319770672,1710963035105,-500.0,0.00025205,2]
[319770673,1710963035115,-500.0,0.00025205,2]
[319770674,1710963035125,-500.0,0.00025205,2]
[319770675,1710963035134,-531.3090228,0.00025205,2]
[319770676,1710963035144,-2352.01,0.00025205,2]
[319770677,1710963035154,-500.0,0.00025205,2]
[319770678,1710963035164,-500.0,0.00025205,2]
[319770679,1710963035174,-500.0,0.00025205,2]
[319770680,1710963035183,-1133.89,0.00025205,2]
[319770681,1710963035195,-500.0,0.00025205,2]
[319770682,1710963035205,-1717.55,0.00025205,2]
[319770683,1710963035215,-500.0,0.00025205,2]
[319770684,1710963035225,-165.88617852,0.00025334,2]
[319770685,1710963035235,-304.70562123,0.00025334,2]
[319770686,1710963035244,-176.34355164,0.00025334,2]
[319770687,1710963035254,-303.39799446,0.00025334,2]
[319770688,1710963035264,-500.0,0.00025334,2]
[319770689,1710963035273,-500.0,0.00025334,2]
[319770690,1710963035283,-500.0,0.00025334,2]
[319770691,1710963035292,-500.0,0.00025334,2]
[319770692,1710963035301,-500.0,0.00025334,2]
[319770693,1710963035311,-4656.72,0.00025334,2]
[319770694,1710963035320,-500.0,0.00025334,2]
[319770695,1710963035329,-500.0,0.00025334,2]
[319770696,1710963035339,-500.0,0.00025334,2]
[319770697,1710963035348,-500.0,0.00025334,2]
[319770698,1710963035357,-444.53414022,0.00025334,2]
[319770699,1710963035367,-559.27847432,0.00025335,2]
[319770700,1710963035376,-400.0,0.00025335,2]
[319770701,1710963035386,-500.0,0.00025335,2]
[319770702,1710963035396,-500.0,0.00025335,2]
[319770703,1710963035405,-586.9134743,0.00025335,2]
[319770704,1710963035414,-500.0,0.00025335,2]
[319770705,1710963035424,-500.0,0.00025335,2]
[319770706,1710963035433,-500.0,0.00025335,2]
[319770707,1710963035443,-539.50951596,0.00025335,2]
[319770708,1710963035453,-969.34557767,0.00025362,2]
[319770709,1710963035462,-519.16744592,0.00025479,2]
[319770710,1710963035471,-204.12518136,0.00025479,2]
[319770711,1710963035480,-624.37207761,0.00025479,2]
[319770712,1710963035489,-320.08325744,0.00025479,2]
[319770713,1710963035499,-477.4986594,0.00025479,2]
[319770714,1710963035510,-500.0,0.00025479,2]
[319770715,1710963035520,-500.0,0.00025479,2]
[319770716,1710963035529,-500.0,0.00025479,2]
[319770717,1710963035539,-500.0,0.00025479,2]
[319770718,1710963035548,-538.29080826,0.00025479,2]
[319770719,1710963035559,-500.0,0.00025479,2]
[319770720,1710963035570,-500.0,0.00025479,2]
[319770721,1710963035579,-500.0,0.00025479,2]
[319770722,1710963035589,-2248.2,0.00025479,2]
[319770723,1710963035598,-604.7013587,0.00025479,2]
[319770724,1710963035608,-500.0,0.00025479,2]
[319770725,1710963035617,-1953.44,0.00025479,2]
[319770726,1710963035626,-500.0,0.00025479,2]
[319770727,1710963035636,-500.0,0.00025479,2]
[319770728,1710963035645,-500.0,0.00025479,2]
[319770729,1710963035655,-500.0,0.00025479,2]
[319770730,1710963035665,-500.0,0.00025479,2]
[319770731,1710963035674,-500.0,0.00025479,2]
[319770732,1710963035683,-500.0,0.00025479,2]
[319770733,1710963035693,-500.0,0.00025479,2]
[319770734,1710963035702,-500.0,0.00025479,2]
[319770735,1710963035712,-2352.01,0.00025479,2]
[319770736,1710963035721,-500.0,0.00025479,2]
[319770737,1710963035730,-641.1869052,0.00025479,2]
[319770738,1710963035740,-500.0,0.00025479,2]
[319770739,1710963035749,-1133.89,0.00025479,2]
[319770740,1710963035759,-500.0,0.00025479,2]
[319770741,1710963035768,-1717.55,0.00025479,2]
[319770742,1710963035778,-500.0,0.00025479,2]
[319770743,1710963035787,-154.92253873,0.00025607,2]
[319770744,1710963035796,-500.0,0.00025608,2]
[319770745,1710963035806,-500.0,0.00025608,2]
[319770746,1710963035815,-500.0,0.00025608,2]
[319770747,1710963035825,-500.0,0.00025608,2]
[319770748,1710963035834,-500.0,0.00025608,2]
[319770749,1710963035844,-4656.72,0.00025608,2]
[319770750,1710963035853,-500.0,0.00025608,2]
[319770751,1710963035863,-500.0,0.00025608,2]
[319770752,1710963035873,-500.0,0.00025608,2]
[319770753,1710963035882,-500.0,0.00025608,2]
[319770754,1710963035891,-516.92351137,0.00025609,2]
[319770755,1710963035901,-500.0,0.00025609,2]
[319770756,1710963035911,-500.0,0.00025609,2]
[319770757,1710963035920,-177.36823991,0.00025609,2]
[319770758,1710963035930,-500.0,0.00025609,2]
[319770759,1710963035939,-500.0,0.00025753,2]
[319770760,1710963035949,-500.0,0.00025753,2]
[319770761,1710963035958,-550.47838715,0.00025753,2]
[319770762,1710963035968,-500.0,0.00025753,2]
[319770763,1710963035978,-500.0,0.00025753,2]
[319770764,1710963035987,-631.70754652,0.00025753,2]
[319770765,1710963035997,-500.0,0.00025753,2]
[319770766,1710963036008,-2248.2,0.00025753,2]
[319770767,1710963036018,-500.0,0.00025753,2]
[319770768,1710963036027,-1953.44,0.00025753,2]
[319770769,1710963036037,-362.21142862,0.00025753,2]
[319770770,1710963036047,-500.0,0.00025753,2]
[319770771,1710963036056,-500.0,0.00025753,2]
[319770772,1710963036066,-500.0,0.00025753,2]
[319770773,1710963036078,-500.0,0.00025753,2]
[319770774,1710963036089,-500.0,0.00025753,2]
[319770775,1710963036099,-500.0,0.00025753,2]
[319770776,1710963036109,-500.0,0.00025753,2]
[319770777,1710963036121,-500.0,0.00025753,2]
[319770778,1710963036131,-2352.01,0.00025753,2]
[319770779,1710963036141,-500.0,0.00025753,2]
[319770780,1710963036151,-246.68206421,0.00025753,2]
[319770781,1710963036162,-1133.89,0.00025753,2]
[319770782,1710963036172,-500.0,0.00025753,2]
[319770783,1710963036181,-1717.55,0.00025753,2]
[319770784,1710963036193,-324.45866727,0.00025753,2]
[319770785,1710963036203,-290.98092274,0.0002588,2]
[319770786,1710963036213,-1300.05415471,0.00025881,2]
[319770787,1710963036223,-500.0,0.00025882,2]
[319770788,1710963036233,-500.0,0.00025882,2]
[319770789,1710963036242,-613.54338588,0.00025882,2]
[319770790,1710963036254,-500.0,0.00025882,2]
[319770791,1710963036263,-500.0,0.00025882,2]
[319770792,1710963036272,-4656.72,0.00025882,2]
[319770793,1710963036282,-500.0,0.00025882,2]
[319770794,1710963036291,-500.0,0.00025882,2]
[319770795,1710963036301,-500.0,0.00025882,2]
[319770796,1710963036310,-500.0,0.00025882,2]
[319770797,1710963036320,-500.0,0.00025883,2]
[319770798,1710963036329,-500.0,0.00025883,2]
[319770799,1710963036339,-286.35641505,0.00025883,2]
[319770800,1710963036349,-297.2199337,0.00026027,2]
[319770801,1710963036358,-365.61106486,0.00026027,2]
[319770802,1710963036367,-500.0,0.00026027,2]
[319770803,1710963036377,-500.0,0.00026027,2]
[319770804,1710963036386,-500.0,0.00026027,2]
[319770805,1710963036396,-2248.2,0.00026027,2]
[319770806,1710963036404,-500.0,0.00026027,2]
[319770807,1710963036414,-1953.44,0.00026027,2]
[319770808,1710963036424,-500.0,0.00026027,2]
[319770809,1710963036433,-500.0,0.00026027,2]
[319770810,1710963036442,-500.0,0.00026027,2]
[319770811,1710963036451,-500.0,0.00026027,2]
[319770812,1710963036460,-500.0,0.00026027,2]
[319770813,1710963036470,-276.52401883,0.00026027,2]
[319770814,1710963036479,-500.0,0.00026027,2]
[319770815,1710963036488,-500.0,0.00026027,2]
[319770816,1710963036497,-2352.01,0.00026027,2]
[319770817,1710963036507,-500.0,0.00026027,2]
[319770818,1710963036517,-1133.89,0.00026027,2]
[319770819,1710963036526,-500.0,0.00026027,2]
[319770820,1710963036535,-1717.55,0.00026027,2]
[319770821,1710963036544,-500.0,0.00026156,2]
[319770822,1710963036554,-500.0,0.00026156,2]
[319770823,1710963036563,-500.0,0.00026156,2]
[319770824,1710963036572,-500.0,0.00026156,2]
[319770825,1710963036581,-4656.72,0.00026156,2]
[319770826,1710963036591,-500.0,0.00026156,2]
[319770827,1710963036601,-500.0,0.00026156,2]
[319770828,1710963036610,-500.0,0.00026156,2]
[319770829,1710963036620,-500.0,0.00026156,2]
[319770830,1710963036629,-500.0,0.00026157,2]
[319770831,1710963036638,-500.0,0.00026157,2]
[319770832,1710963036648,-620.20643379,0.00026201,2]
[319770833,1710963036657,-3784.3854397,0.00026301,3]
[319770834,1710963036668,-500.0,0.00026301,2]
[319770835,1710963036677,-500.0,0.00026301,2]
[319770836,1710963036686,-500.0,0.00026301,2]
[319770837,1710963036695,-2248.2,0.00026301,2]
[319770838,1710963036705,-500.0,0.00026301,2]
[319770839,1710963036714,-1953.44,0.00026301,2]
[319770840,1710963036723,-500.0,0.00026301,2]
[319770841,1710963036733,-500.0,0.00026301,2]
[319770842,1710963036742,-500.0,0.00026301,2]
[319770843,1710963036752,-500.0,0.00026301,2]
[319770844,1710963036761,-591.03763455,0.00026301,2]
[319770845,1710963036771,-500.0,0.00026301,2]
[319770846,1710963036780,-500.0,0.00026301,2]
[319770847,1710963036790,-2352.01,0.00026301,2]
[319770848,1710963036799,-500.0,0.00026301,2]
[319770849,1710963036809,-1133.89,0.00026301,2]
[319770850,1710963036818,-500.0,0.00026301,2]
[319770851,1710963036827,-1717.55,0.00026301,2]
[319770852,1710963036837,-500.0,0.0002643,2]
[319770853,1710963036846,-210.83209785,0.0002643,2]
[319770854,1710963036855,-500.0,0.0002643,2]
[319770855,1710963036865,-500.0,0.0002643,2]
[319770856,1710963036874,-4656.72,0.0002643,2]
[319770857,1710963036884,-500.0,0.0002643,2]
[319770858,1710963036893,-500.0,0.0002643,2]
[319770859,1710963036903,-500.0,0.0002643,2]
[319770860,1710963036913,-500.0,0.0002643,2]
[319770861,1710963036922,-500.0,0.00026431,2]
[319770862,1710963036932,-176.2902934,0.00026431,2]
[319770863,1710963036941,-500.0,0.00026575,2]
[319770864,1710963036951,-500.0,0.00026575,2]
[319770865,1710963036960,-500.0,0.00026575,2]
[319770866,1710963036969,-2248.2,0.00026575,2]
[319770867,1710963036978,-500.0,0.00026575,2]
[319770868,1710963036987,-1953.44,0.00026575,2]
[319770869,1710963036997,-500.0,0.00026575,2]
[319770870,1710963037007,-500.0,0.00026575,2]
[319770871,1710963037016,-500.0,0.00026575,2]
[319770872,1710963037026,-500.0,0.00026575,2]
[319770873,1710963037035,-500.0,0.00026575,2]
[319770874,1710963037044,-500.0,0.00026575,2]
[319770875,1710963037054,-2352.01,0.00026575,2]
[319770876,1710963037064,-500.0,0.00026575,2]
[319770877,1710963037074,-1133.89,0.00026575,2]
[319770878,1710963037083,-500.0,0.00026575,2]
[319770879,1710963037092,-1717.55,0.00026575,2]
[319770880,1710963037104,-169.419588,0.00026575,2]
[319770881,1710963037114,-169.419588,0.00026575,25]
[319770882,1710963037123,-169.419588,0.00026575,49]
[319770883,1710963037132,-169.419588,0.00026575,72]
[319770884,1710963037143,-169.419588,0.00026575,96]
[319770885,1710963037152,-500.0,0.00026704,2]
[319770886,1710963037161,-500.0,0.00026704,2]
[319770887,1710963037170,-500.0,0.00026704,2]
[319770888,1710963037179,-4656.72,0.00026704,2]
[319770889,1710963037191,-477.15239587,0.00026704,2]
[319770890,1710963037201,-500.0,0.00026704,2]
[319770891,1710963037211,-500.0,0.00026704,2]
[319770892,1710963037220,-500.0,0.00026704,2]
[319770893,1710963037229,-177.4302789,0.00026705,2]
[319770894,1710963037238,-500.0,0.00026849,2]
[319770895,1710963037247,-400.29157212,0.00026849,2]
[319770896,1710963037257,-500.0,0.00026849,2]
[319770897,1710963037266,-2248.2,0.00026849,2]
[319770898,1710963037276,-500.0,0.00026849,2]
[319770899,1710963037285,-1953.44,0.00026849,2]
[319770900,1710963037294,-500.0,0.00026849,2]
[319770901,1710963037303,-500.0,0.00026849,2]
[319770902,1710963037312,-500.0,0.00026849,2]
[319770903,1710963037321,-500.0,0.00026849,2]
[319770904,1710963037331,-500.0,0.00026849,2]
[319770905,1710963037341,-2352.01,0.00026849,2]
[319770906,1710963037351,-297.3717008,0.00026849,2]
[319770907,1710963037360,-1133.89,0.00026849,2]
[319770908,1710963037370,-500.0,0.00026849,2]
[319770909,1710963037380,-1717.55,0.00026849,2]
[319770910,1710963037391,-500.0,0.00026978,2]
[319770911,1710963037401,-500.0,0.00026978,2]
[319770912,1710963037410,-500.0,0.00026978,2]
[319770913,1710963037419,-4656.72,0.00026978,2]
[319770914,1710963037428,-500.0,0.00026978,2]
[319770915,1710963037438,-500.0,0.00026978,2]
[319770916,1710963037447,-500.0,0.00026978,2]
[319770917,1710963037456,-500.0,0.00027123,2]
[319770918,1710963037465,-500.0,0.00027123,2]
[319770919,1710963037474,-2248.2,0.00027123,2]
[319770920,1710963037484,-500.0,0.00027123,2]
[319770921,1710963037493,-1953.44,0.00027123,2]
[319770922,1710963037502,-500.0,0.00027123,2]
[319770923,1710963037512,-500.0,0.00027123,2]
[319770924,1710963037521,-500.0,0.00027123,2]
[319770925,1710963037529,-500.0,0.00027123,2]
[319770926,1710963037538,-500.0,0.00027123,2]
[319770927,1710963037547,-2352.01,0.00027123,2]
[319770928,1710963037557,-1133.89,0.00027123,2]
[319770929,1710963037566,-500.0,0.00027123,2]
[319770930,1710963037575,-1717.55,0.00027123,2]
[319770931,1710963037680,-500.0,0.00027252,2]
[319770932,1710963037690,-500.0,0.00027252,2]
[319770933,1710963037699,-500.0,0.00027252,2]
[319770934,1710963037709,-4656.72,0.00027252,2]
[319770935,1710963037718,-500.0,0.00027252,2]
[319770936,1710963037728,-500.0,0.00027252,2]
[319770937,1710963037739,-500.0,0.00027252,2]
[319770938,1710963037748,-205.9833027,0.00027395,2]
[319770939,1710963037758,-500.0,0.00027397,2]
[319770940,1710963037767,-500.0,0.00027397,2]
[319770941,1710963037777,-2248.2,0.00027397,2]
[319770942,1710963037786,-500.0,0.00027397,2]
[319770943,1710963037795,-1953.44,0.00027397,2]
[319770945,1710963037804,-500.0,0.00027397,2]
[319770946,1710963037813,-450.02285699,0.00027397,2]
[319770947,1710963037822,-500.0,0.00027397,2]
[319770948,1710963037831,-500.0,0.00027397,2]
[319770949,1710963037840,-500.0,0.00027397,2]
[319770950,1710963037849,-500.0,0.00027397,2]
[319770951,1710963037858,-500.0,0.00027397,2]
[319770954,1710963037868,-500.0,0.00027397,2]
[319770956,1710963037877,-500.0,0.00027397,2]
[319770958,1710963037885,-500.0,0.00027397,2]
[319770960,1710963037895,-500.0,0.00027397,2]
[319770962,1710963037904,-500.0,0.00027397,2]
[319770964,1710963037915,-500.0,0.00027397,2]
[319770965,1710963037924,-500.0,0.00027397,2]
[319770967,1710963037934,-500.0,0.00027397,2]
[319770969,1710963037943,-500.0,0.00027397,2]
[319770970,1710963037953,-500.0,0.00027397,2]
[319770972,1710963037962,-500.0,0.00027397,2]
[319770974,1710963037971,-500.0,0.00027397,2]
[319770976,1710963037980,-327.78009035,0.00027397,2]
[319770977,1710963037989,-500.0,0.00027397,2]
[319770979,1710963037998,-500.0,0.00027397,2]
[319770981,1710963038008,-500.0,0.00027397,2]
[319770982,1710963038017,-500.0,0.00027397,2]
[319770985,1710963038025,-500.0,0.00027397,2]
[319770987,1710963038034,-500.0,0.00027397,2]
[319770989,1710963038043,-500.0,0.00027397,2]
[319770991,1710963038052,-500.0,0.00027397,2]
[319770993,1710963038062,-500.0,0.00027397,2]
[319770995,1710963038071,-500.0,0.00027397,2]
[319770997,1710963038080,-500.0,0.00027397,2]
[319770999,1710963038089,-500.0,0.00027397,2]
[319771001,1710963038098,-500.0,0.00027397,2]
[319771003,1710963038107,-500.0,0.00027397,2]
[319771005,1710963038118,-500.0,0.00027397,2]
[319771007,1710963038127,-500.0,0.00027397,2]
[319771008,1710963038136,-500.0,0.00027397,2]
[319771009,1710963038146,-500.0,0.00027397,2]
[319771010,1710963038156,-500.0,0.00027397,2]
[319771012,1710963038165,-500.0,0.00027397,2]
[319771014,1710963038175,-500.0,0.00027397,2]
[319771015,1710963038185,-500.0,0.00027397,2]
[319771016,1710963038197,-500.0,0.00027397,2]
[319771018,1710963038207,-500.0,0.00027397,2]
[319771019,1710963038217,-500.0,0.00027397,2]
[319771021,1710963038226,-500.0,0.00027397,2]
[319771023,1710963038236,-500.0,0.00027397,2]
[319771024,1710963038245,-500.0,0.00027397,2]
[319771025,1710963038256,-500.0,0.00027397,2]
[319771027,1710963038265,-500.0,0.00027397,2]
[319771028,1710963038274,-500.0,0.00027397,2]
[319771029,1710963038283,-500.0,0.00027397,2]
[319771030,1710963038292,-300.0,0.00027397,2]
[319771031,1710963038301,-500.0,0.00027397,2]
[319771032,1710963038310,-500.0,0.00027397,2]
[319771033,1710963038320,-500.0,0.00027397,2]
[319771034,1710963038329,-500.0,0.00027397,2]
[319771036,1710963038338,-500.0,0.00027397,2]
[319771037,1710963038347,-500.0,0.00027397,2]
[319771039,1710963038356,-500.0,0.00027397,2]
[319771041,1710963038365,-500.0,0.00027397,2]
[319771043,1710963038374,-500.0,0.00027397,2]
[319771045,1710963038383,-500.0,0.00027397,2]
[319771047,1710963038392,-155.0,0.00027397,2]
[319771049,1710963038401,-2352.01,0.00027397,2]
[319771051,1710963038411,-500.0,0.00027397,2]
[319771053,1710963038420,-1133.89,0.00027397,2]
[319771055,1710963038429,-1717.55,0.00027397,2]
[319771057,1710963038438,-1584.4,0.00027397,2]
[319771059,1710963038447,-1584.4,0.00027397,2]
[319771061,1710963038456,-1584.4,0.00027397,2]
[319771063,1710963038465,-1584.4,0.00027397,2]
[319771065,1710963038474,-1584.4,0.00027397,2]
[319771066,1710963038483,-1584.4,0.00027397,2]
[319771067,1710963038491,-1584.4,0.00027397,2]
[319771068,1710963038500,-1584.4,0.00027397,2]
[319771069,1710963038509,-1584.4,0.00027397,2]
[319771070,1710963038519,-1584.4,0.00027397,2]
[319771071,1710963038528,-1584.4,0.00027397,2]
[319771072,1710963038536,-166.666666,0.00027397,2]
[319771073,1710963038545,-500.0,0.00027526,2]
[319771074,1710963038554,-500.0,0.00027526,2]
[319771075,1710963038563,-500.0,0.00027526,2]
[319771076,1710963038572,-4656.72,0.00027526,2]
[319771077,1710963038581,-500.0,0.00027526,2]
[319771078,1710963038590,-500.0,0.00027526,2]
[319771079,1710963038601,-500.0,0.00027526,2]
[319771080,1710963038609,-500.0,0.00027671,2]
[319771081,1710963038618,-500.0,0.00027671,2]
[319771082,1710963038627,-2248.2,0.00027671,2]
[319771083,1710963038636,-500.0,0.00027671,2]
[319771084,1710963038644,-1953.44,0.00027671,2]
[319771086,1710963038654,-500.0,0.00027671,2]
[319771087,1710963038662,-500.0,0.00027671,2]
[319771089,1710963038672,-500.0,0.00027671,2]
[319771091,1710963038681,-500.0,0.00027671,2]
[319771093,1710963038690,-2352.01,0.00027671,2]
[319771094,1710963038699,-500.0,0.00027671,2]
[319771096,1710963038709,-1133.89,0.00027671,2]
[319771097,1710963038718,-1717.55,0.00027671,2]
[319771098,1710963038727,-1584.4,0.00027671,2]
[319771099,1710963038736,-2375.99399556,0.000277,2]
[319771100,1710963038746,-500.0,0.000278,2]
[319771101,1710963038756,-500.0,0.000278,2]
[319771102,1710963038765,-500.0,0.000278,2]
[319771103,1710963038774,-4656.72,0.000278,2]
[319771104,1710963038783,-500.0,0.000278,2]
[319771105,1710963038793,-500.0,0.000278,2]
[319771106,1710963038802,-500.0,0.000278,2]
[319771107,1710963038811,-475.59375793,0.00027945,2]
[319771108,1710963038820,-500.0,0.00027945,2]
[319771109,1710963038830,-2248.2,0.00027945,2]
[319771110,1710963038841,-500.0,0.00027945,2]
[319771111,1710963038857,-1953.44,0.00027945,2]
[319771112,1710963038871,-500.0,0.00027945,2]
[319771113,1710963038883,-500.0,0.00027945,2]
[319771114,1710963038896,-500.0,0.00027945,2]
[319771115,1710963038908,-500.0,0.00027945,2]
[319771116,1710963038918,-2352.01,0.00027945,2]
[319771117,1710963038929,-500.0,0.00027945,2]
[319771118,1710963038941,-1133.89,0.00027945,2]
[319771119,1710963038952,-1717.55,0.00027945,2]
[319771120,1710963038963,-1584.4,0.00027945,2]
[319771121,1710963038975,-166.666666,0.00028038,2]
[319771122,1710963038987,-500.0,0.00028074,2]
[319771123,1710963038999,-500.0,0.00028074,2]
[319771124,1710963039014,-500.0,0.00028074,2]
[319771125,1710963039026,-4656.72,0.00028074,2]
[319771126,1710963039038,-500.0,0.00028074,2]
[319771127,1710963039049,-500.0,0.00028074,2]
[319771128,1710963039059,-500.0,0.00028074,2]
[319771129,1710963039070,-500.0,0.00028219,2]
[319771130,1710963039082,-2248.2,0.00028219,2]
[319771131,1710963039093,-500.0,0.00028219,2]
[319771132,1710963039106,-1953.44,0.00028219,2]
[319771133,1710963039118,-449.8560059,0.00028219,2]
[319771134,1710963039130,-500.0,0.00028219,2]
[319771135,1710963039141,-500.0,0.00028219,2]
[319771136,1710963039154,-500.0,0.00028219,2]
[319771137,1710963039166,-2352.01,0.00028219,2]
[319771138,1710963039177,-500.0,0.00028219,2]
[319771139,1710963039189,-1133.89,0.00028219,2]
[319771140,1710963039200,-1717.55,0.00028219,2]
[319771141,1710963039210,-1584.4,0.00028219,2]
[319771142,1710963039221,-500.0,0.00028348,2]
[319771143,1710963039234,-500.0,0.00028348,2]
[319771144,1710963039246,-500.0,0.00028348,2]
[319771145,1710963039260,-4656.72,0.00028348,2]
[319771146,1710963039272,-500.0,0.00028348,2]
[319771147,1710963039285,-500.0,0.00028348,2]
[319771148,1710963039296,-500.0,0.00028348,2]